Cogmind - Beta 13 @@@ ROGUE MODE // 2024.04.08 @ 16:41:42 Player: kucifra Result: Core destroyed Performance ------------- Evolutions (6) 3000 Regions Visited (13) 2600 Robots Destroyed (44) 220 Value Destroyed (1803) 1803 Prototype IDs (29) 580 Alien Tech Used (0) 0 Bonus (800) 800 TOTAL SCORE: 9003 Bonus ------- Entered DSFs 500 Aligned with FarCom 300 Cogmind --------- Core Integrity 0/1150 Matter 212/300 Energy 100/100 System Corruption 0% Temperature Cool (0) Movement Core (50) Location -4/Upper Caves Parts ------- > --- POWER (2) -------- (None) > --- PROPULSION (5) --- (None) > --- UTILITY (9) ------ Visual Processing Unit Advanced Terrain Scan Processor Advanced Targeting Computer > --- WEAPON (3) ------- (None) > --- INVENTORY (5) ---- Light Ion Engine Surge Thruster Improved Heat Sink Peak State ------------ > --- POWER ------------ Light Angular Momentum Engine Light Antimatter Reactor > --- PROPULSION ------- Backup Propulsion I Backup Propulsion I Antigrav System Antigrav System Improved Linear Gravjet > --- UTILITY ---------- Experimental Heat Sink Visual Processing Unit Improved Signal Interpreter Terrain Scan Processor Advanced Terrain Scan Processor Advanced Targeting Computer Cloak of Protection Backup Plating I > --- WEAPON ----------- Wave Gun Wave Gun Lance > --- INVENTORY -------- Surge Thruster Improved Heat Sink [Rating: 81] Favorites ----------- Power Ion Engine Engine Ion Engine Power Core Micro Nuclear Core Reactor Light Antimatter Reactor Propulsion Light Treads Treads Light Treads Leg Aluminum Leg Hover Unit Antigrav System Flight Unit Surge Thruster Utility Large Storage Unit Device Advanced Sensor Array Storage Large Storage Unit Processor Terrain Scan Processor Hackware Hacking Suite Protection Heavy Armor Plating Weapon Assault Rifle Energy Gun Wave Gun Ballistic Gun Assault Rifle Launcher Grenade Launcher Slashing Weapon Great Axe Piercing Weapon Spear Build | -11 -10 -10 -10 -9 -8 -7 -7 -6 -6 -6 -5 -4 -4 ------- Run | Yrd Mat Min Exi Min Mat Fac DSF Fac Ext Cet Fac Fac Upp Slots Evolved 12 | . . . . . 4 2 . 2 . . 2 2 . Power 1 | . . . . . . . . . . . 1 . . Propulsion 3 | . . . . . 1 . . 1 . . 1 . . Utility 7 | . . . . . 2 2 . 1 . . . 2 . Weapon 1 | . . . . . 1 . . . . . . . . Parts Attached 116 | 6 4 . 1 12 8 2 4 24 20 . 25 9 1 Power 17 | 1 . . . 1 . . 1 4 1 . 7 2 . Engine 14 | 1 . . . 1 . . 1 3 1 . 6 1 . Core 2 | . . . . . . . . 1 . . 1 . . Reactor 1 | . . . . . . . . . . . . 1 . Propulsion 32 | 2 2 . . 2 3 . 2 5 7 . 7 2 . Treads 16 | . 2 . . 2 3 . 2 4 3 . . . . Leg 2 | 2 . . . . . . . . . . . . . Wheel . | . . . . . . . . . . . . . . Hover 7 | . . . . . . . . . . . 5 2 . Flight 7 | . . . . . . . . 1 4 . 2 . . Utility 39 | 1 2 . 1 2 2 2 1 8 8 . 7 5 . Device 17 | . . . 1 . . 1 1 3 2 . 5 4 . Storage 5 | 1 2 . . 2 . . . . . . . . . Processor 9 | . . . . . 1 1 . 2 3 . 1 1 . Hackware 2 | . . . . . . . . 2 . . . . . Protection 6 | . . . . . 1 . . 1 3 . 1 . . Artifact . | . . . . . . . . . . . . . . Weapon 28 | 2 . . . 7 3 . . 7 4 . 4 . 1 Energy Gun 6 | . . . . . . . . 1 2 . 3 . . Energy Cannon . | . . . . . . . . . . . . . . Ballistic Gun 8 | 2 . . . 4 . . . . 2 . . . . Ballistic Cannon . | . . . . . . . . . . . . . . Launcher 7 | . . . . 3 3 . . 1 . . . . . Special Weapon . | . . . . . . . . . . . . . . Impact Weapon . | . . . . . . . . . . . . . . Slashing Weapon 2 | . . . . . . . . 2 . . . . . Piercing Weapon 5 | . . . . . . . . 3 . . 1 . 1 Special Melee Weapon . | . . . . . . . . . . . . . . Unidentified Prototypes 3 | . . . 1 . . . . . . . 2 . . Parts Lost 60 | . . . . . 2 . . 18 16 . 8 15 1 Power 6 | . . . . . . . . 3 . . 1 2 . Propulsion 18 | . . . . . . . . 3 6 . 4 5 . Utility 21 | . . . . . 1 . . 7 5 . 2 6 . Weapon 15 | . . . . . 1 . . 5 5 . 1 2 1 Highest Loss Streak 14 | . . . . . 1 . . 10 7 . 5 14 2 To Critical Strikes . | . . . . . . . . . . . . . . Average Slot Usage (%) 75 | . 85 85 85 97 80 92 92 70 76 46 49 76 18 Engine 6 | . 14 14 14 14 9 7 7 5 . 6 4 3 . Core 1 | . . . . . . . . . 5 . . . . Treads 18 | . 23 28 28 28 21 23 23 21 19 . . . . Hover 1 | . . . . . . . . . . . 1 19 . Flight 2 | . . . . . . . . . 2 13 11 1 . Device 3 | . . . . . . 7 7 7 2 . 3 7 . Storage 8 | . 14 14 14 26 12 7 7 6 5 . . . . Processor 12 | . . . . . 3 15 15 15 19 26 24 23 15 Protection 2 | . . . . . 9 7 7 . 4 . . 3 . Energy Gun 1 | . . . . . . . . . 4 . . 8 . Ballistic Gun 10 | . 28 28 28 23 18 15 15 1 3 . . . . Launcher 2 | . . . . 4 6 7 7 2 . . . . . Piercing Weapon 1 | . . . . . . . . 1 5 . . 4 2 Naked Turns . | . . . . . . . . . . . . . . Heaviest Build 53 | 14 29 29 29 35 52 49 53 53 40 5 23 43 3 Greatest Support 90 | 20 40 40 40 40 60 60 60 90 90 9 34 44 3 Greatest Overweight (x) 1 | 1 . . . . 1 . . 1 1 . 1 1 . Average Overweight (x) . | . . . . . . . . . . . . . . Largest Inventory Capacity 25 | 8 25 15 15 15 15 15 15 15 15 5 5 5 5 Average Capacity 12 | 6 14 15 15 15 15 15 15 15 14 5 5 5 5 Most Carried 15 | 3 6 12 13 15 15 14 15 15 11 5 5 4 4 Average Carried 9 | 1 5 9 12 14 13 13 14 12 7 4 4 1 3 Final Capacity 15 | 8 15 15 15 15 15 15 15 15 5 5 5 5 5 Final Carried 15 | 3 6 12 13 15 15 13 15 7 5 5 2 4 3 Class Distribution -------------------- 33% | Scavenger-Mutant 32% | Mutant 13% | Scavenger-Assassin 11% | Scavenger-Skirmisher 5% | Skirmisher 4% | Scavenger-Sprinter Dominant Class ---------------- Mutant | -10/Materials Mutant | -10/Mines Mutant | -10/Exiles Mutant | -9/Mines Skirmisher | -8/Materials Scavenger-Skirmisher | -7/Factory Scavenger-Skirmisher | -7/DSF Scavenger-Mutant | -6/Factory Scavenger-Mutant | -6/Extension Scavenger-Mutant | -6/Cetus Scavenger-Mutant | -5/Factory Scavenger-Mutant | -4/Factory Scavenger-Mutant | -4/Upper Caves Resources | -11 -10 -10 -10 -9 -8 -7 -7 -6 -6 -6 -5 -4 -4 ----------- Run | Yrd Mat Min Exi Min Mat Fac DSF Fac Ext Cet Fac Fac Upp Matter Collected 1934 | 217 . 15 . 371 236 . 180 446 274 . 127 68 . Remotely . | . . . . . . . . . . . . . . Salvage Created 1459 | . . . . 128 254 . 38 320 600 . 51 68 . Parts 105 | . . . . 9 26 . 6 25 31 . 2 6 . Haulers Intercepted . | . . . . . . . . . . . . . . Recyclers Shooed . | . . . . . . . . . . . . . . Parts Field Recycled . | . . . . . . . . . . . . . . Retrieved Matter . | . . . . . . . . . . . . . . Parts Self-Destructed . | . . . . . . . . . . . . . . Prevented . | . . . . . . . . . . . . . . Kills | -11 -10 -10 -10 -9 -8 -7 -7 -6 -6 -6 -5 -4 -4 ------- Run | Yrd Mat Min Exi Min Mat Fac DSF Fac Ext Cet Fac Fac Upp Combat Hostiles Destroyed 33 | . . . . 3 4 . 3 11 10 . 1 1 . Melee 9 | . . . . . . . . 3 5 . . 1 . Guns 14 | . . . . 3 3 . 1 1 5 . 1 . . AOE 10 | . . . . . 1 . 2 7 . . . . . Classes Destroyed 12 | . . . . 2 6 . 1 2 . . . 1 . Worker 3 | . . . . . 1 . . 1 . . . 1 . Builder 3 | . . . . 1 1 . . 1 . . . . . Tunneler 1 | . . . . . . . . . . . . 1 . Operator 2 | . . . . . 2 . . . . . . . . Watcher 2 | . . . . . 1 . . . 1 . . . . Swarmer 4 | . . . . . . . 3 1 . . . . . Grunt 14 | . . . . 3 . . . 4 7 . . . . Duelist 1 | . . . . . . . . 1 . . . . . Sentry 5 | . . . . . 2 . . . 3 . . . . Hunter 5 | . . . . . 1 . . 3 . . . 1 . Programmer 3 | . . . . . . . . 2 . . 1 . . Heavy 1 | . . . . . 1 . . . . . . . . Best Kill Streak 4 | . . . . 2 3 . 3 4 3 . 1 2 . Combat Bots Only 4 | . . . . 2 1 . 3 4 3 . 1 1 . Max Kills in Single Turn 2 | . . . . 1 1 . 2 2 1 . 1 1 . Gunslinging . | . . . . . . . . . . . . . . Exploded 2 | . . . . . 1 . 2 2 . . . . . Melee 1 | . . . . . . . . 1 1 . . 1 . Uniques/NPCs Destroyed . | . . . . . . . . . . . . . . Combat | -11 -10 -10 -10 -9 -8 -7 -7 -6 -6 -6 -5 -4 -4 -------- Run | Yrd Mat Min Exi Min Mat Fac DSF Fac Ext Cet Fac Fac Upp Hostile Shots Fired 642 | . . . . 45 46 . 5 127 238 . 52 92 37 Missed 238 | . . . . 16 21 . 2 37 92 . 21 39 10 Damage Taken 7546 | . . 24 . 352 576 . 47 1860 2075 . 697 1386 529 Core 2176 | . . . . 63 50 . . 285 394 . 233 677 474 Absorbed by Shields 56 | . . . . . . . . . 30 . 26 . . Redirected to Shielding 53 | . . . . . . . . . 53 . . . . Core Remaining (%) 76 | 100 . . . 74 90 . 100 . . 20 76 . . Volleys Fired 131 | . . . . 19 37 . 4 47 14 . 3 7 . Largest 2 | . . . . 2 2 . 2 1 2 . 2 2 . Hottest 162 | . . . . 40 43 . 43 69 108 . 162 162 . Shots Fired 190 | . . . . 38 62 . 5 46 19 . 6 14 . Gun 151 | . . . . 38 50 . 2 22 19 . 6 14 . Cannon . | . . . . . . . . . . . . . . Launcher 39 | . . . . . 12 . 3 24 . . . . . Special . | . . . . . . . . . . . . . . Kinetic 102 | . . . . 38 50 . 2 . 12 . . . . Thermal 49 | . . . . . . . . 22 7 . 6 14 . Explosive 39 | . . . . . 12 . 3 24 . . . . . Electromagnetic . | . . . . . . . . . . . . . . Robot Hit Streak 16 | . . . . 8 8 . 3 16 11 . 3 3 . Robot Miss Streak 9 | . . . . 3 4 . 1 4 5 . 1 9 . Penetration Max . | . . . . . . . . . . . . . . Secondary Targets 3 | . . . . 1 . . . . 2 . . . . Max Gunslinging Chain 1 | . . . . 1 . . . . 1 . . . . Shots Hit Robots 160 | . . . . 25 36 . 2 41 44 . 4 6 2 Core Hits 108 | . . . . 7 21 . 4 34 35 . 2 3 2 Critical Kills . | . . . . . . . . . . . . . . Critical Parts Destroyed 1 | . . . . . 1 . . . . . . . . Critical Strikes 5 | . . . . . 1 . . 1 2 . . 1 . Burn 1 | . . . . . . . . . . . . 1 . Destroy 1 | . . . . . 1 . . . . . . . . Sever 1 | . . . . . . . . 1 . . . . . Impale 2 | . . . . . . . . . 2 . . . . Melee Attacks 45 | . . . . . . . . 9 29 . . 3 4 Impact . | . . . . . . . . . . . . . . Slashing 3 | . . . . . . . . 3 . . . . . Piercing 42 | . . . . . . . . 6 29 . . 3 4 Sneak Attacks 3 | . . . . . . . . . 1 . . 2 . Combat Hostiles 1 | . . . . . . . . . 1 . . . . Follow-up Attacks . | . . . . . . . . . . . . . . Damage Inflicted 4675 | . . . . 301 681 . 240 1800 1160 . 120 300 73 Guns 1534 | . . . . 301 343 . 11 265 420 . 120 74 . Cannons . | . . . . . . . . . . . . . . Explosions 1837 | . . . . . 338 . 229 1270 . . . . . Melee 1290 | . . . . . . . . 260 740 . . 226 64 Ramming 14 | . . . . . . . . 5 . . . . 9 Kinetic 913 | . . . . 301 343 . 11 . 258 . . . . Thermal 621 | . . . . . . . . 265 162 . 120 74 . Explosive 1837 | . . . . . 338 . 229 1270 . . . . . Electromagnetic . | . . . . . . . . . . . . . . Impact . | . . . . . . . . . . . . . . Slashing 110 | . . . . . . . . 110 . . . . . Piercing 1180 | . . . . . . . . 150 740 . . 226 64 Highest Corruption 12 | . . . . . . . . 12 12 12 3 . . Average Corruption 9 | . . . . . . . . 7 12 12 1 . . Corruption Purged . | . . . . . . . . . . . . . . Corruption Blocked . | . . . . . . . . . . . . . . Effects 74 | . . . . . . . . 31 39 1 3 . . Message Errors 16 | . . . . . . . . 6 10 . . . . Matter Fused 19 | . . . . . . . . 10 8 . 1 . . Heat Flow Errors 6 | . . . . . . . . 1 3 . 2 . . Energy Discharges 8 | . . . . . . . . 3 5 . . . . Parts Rejected 3 | . . . . . . . . 1 2 . . . . Data Loss (minor) 9 | . . . . . . . . 6 3 . . . . Data Loss (major) 3 | . . . . . . . . 1 2 . . . . Misfires 2 | . . . . . . . . 1 1 . . . . Alerts 2 | . . . . . . . . . 1 1 . . . Misdirections 1 | . . . . . . . . . 1 . . . . Weapon Failures 5 | . . . . . . . . 2 3 . . . . Overload Shots . | . . . . . . . . . . . . . . Overflow Damage 113 | . . . . . . . 22 21 18 . . 52 . Projectiles . | . . . . . . . . . . . . . . Explosions 22 | . . . . . . . 22 . . . . . . Melee 91 | . . . . . . . . 21 18 . . 52 . Knockbacks . | . . . . . . . . . . . . . . Impact . | . . . . . . . . . . . . . . Kinetic . | . . . . . . . . . . . . . . Secondary . | . . . . . . . . . . . . . . Self-Inflicted Damage 48 | . . . . . . . . 44 . . . . 4 Shots 3 | . . . . . . . . 3 . . . . . Rammed 4 | . . . . 1 . . . 1 . . . . 2 Targets Rammed 4 | . . . . 1 . . . 1 . . . . 2 Kicked . | . . . . . . . . . . . . . . Crushed . | . . . . . . . . . . . . . . Highest Temperature 216 | . . . . 15 . . . 216 212 . 211 152 . Average Temperature 57 | . . . . 7 . . . 52 79 . 71 50 . Received Heat Transfer 1332 | . . . . 195 18 . . 180 720 . 27 138 54 Siege Activations . | . . . . . . . . . . . . . . Robots Corrupted . | . . . . . . . . . . . . . . Combat Hostiles . | . . . . . . . . . . . . . . Parts Fried . | . . . . . . . . . . . . . . Impact Corruptions . | . . . . . . . . . . . . . . Robots Melted . | . . . . . . . . . . . . . . Combat Hostiles . | . . . . . . . . . . . . . . Parts Melted 1 | . . . . . . . . . 1 . . . . Heat Transferred 1226 | . . . . . . . . 518 375 . 148 185 . Parts Sabotaged . | . . . . . . . . . . . . . . Parts Stolen . | . . . . . . . . . . . . . . Parts Stripped . | . . . . . . . . . . . . . . Power Chain Reactions . | . . . . . . . . . . . . . . Alert | -11 -10 -10 -10 -9 -8 -7 -7 -6 -6 -6 -5 -4 -4 ------- Run | Yrd Mat Min Exi Min Mat Fac DSF Fac Ext Cet Fac Fac Upp Peak Influence 328 | . 27 10 . 75 151 29 99 172 110 71 328 132 . Initial 86 | . . 10 . . . 29 23 51 41 56 39 86 . Average 52 | . 13 10 . 45 31 29 48 69 43 65 68 112 . Maximum Alert Level 1 | . . . . . . . . . . . 1 . . Low Security (%) 98 | 100 100 100 . 100 100 100 100 100 100 100 90 100 . Level 1 1 | . . . . . . . . . . . 9 . . Level 2 . | . . . . . . . . . . . . . . Level 3 . | . . . . . . . . . . . . . . Level 4 . | . . . . . . . . . . . . . . Level 5 . | . . . . . . . . . . . . . . High Security . | . . . . . . . . . . . . . . Max Security . | . . . . . . . . . . . . . . Squads Dispatched 16 | . 1 . . . 3 . 1 4 3 . 3 1 . Investigation 4 | . . . . . . . . 2 1 . 1 . . Extermination 3 | . . . . . . . . 2 . . . 1 . Reinforcement 9 | . 1 . . . 3 . 1 . 2 . 2 . . Assault . | . . . . . . . . . . . . . . Garrison . | . . . . . . . . . . . . . . Intercept . | . . . . . . . . . . . . . . Searches Triggered . | . . . . . . . . . . . . . . Construction Impeded . | . . . . . . . . . . . . . . Haulers Reinforced . | . . . . . . . . . . . . . . Active Scanning Responses . | . . . . . . . . . . . . . . Cargo Convoy Interrupts . | . . . . . . . . . . . . . . Stealth | -11 -10 -10 -10 -9 -8 -7 -7 -6 -6 -6 -5 -4 -4 --------- Run | Yrd Mat Min Exi Min Mat Fac DSF Fac Ext Cet Fac Fac Upp Distress Signals 6 | . . . . . . . . . 4 . 1 1 . Communications Jammed . | . . . . . . . . . . . . . . Distress Signals . | . . . . . . . . . . . . . . Times Spotted 107 | . . . . 3 8 . 4 13 24 5 19 18 13 Peak Tracking Total 13 | . 1 . . 3 3 . 3 5 11 5 11 12 13 Tactical Retreats 14 | . . . . . . . . . 4 . 8 1 1 Traps | -11 -10 -10 -10 -9 -8 -7 -7 -6 -6 -6 -5 -4 -4 ------- Run | Yrd Mat Min Exi Min Mat Fac DSF Fac Ext Cet Fac Fac Upp Traps Triggered 4 | . . . . . . . . 1 2 . . 1 . Indirectly . | . . . . . . . . . . . . . . Trap Hack Attempts . | . . . . . . . . . . . . . . Triggered . | . . . . . . . . . . . . . . Disarmed . | . . . . . . . . . . . . . . Reprogrammed . | . . . . . . . . . . . . . . Reused . | . . . . . . . . . . . . . . Traps Extracted . | . . . . . . . . . . . . . . Installed . | . . . . . . . . . . . . . . Triggered . | . . . . . . . . . . . . . . Machines | -11 -10 -10 -10 -9 -8 -7 -7 -6 -6 -6 -5 -4 -4 ---------- Run | Yrd Mat Min Exi Min Mat Fac DSF Fac Ext Cet Fac Fac Upp Machines Disabled 4 | . . . . . . . . 3 . . 1 . . Max in Single Turn 2 | . . . . . . . . 2 . . 1 . . Garrison Access 1 | . . . . . . . . 1 . . . . . Machines Repaired . | . . . . . . . . . . . . . . Machines Dismantled . | . . . . . . . . . . . . . . Machines Sabotaged . | . . . . . . . . . . . . . . Overloaded Fab Kills . | . . . . . . . . . . . . . . Hacking | -11 -10 -10 -10 -9 -8 -7 -7 -6 -6 -6 -5 -4 -4 --------- Run | Yrd Mat Min Exi Min Mat Fac DSF Fac Ext Cet Fac Fac Upp Machines Accessed 30 | . 3 1 1 . 3 1 . 9 3 . 7 2 . Terminals 19 | . 3 . . . 2 1 . 4 3 . 4 2 . Fabricators 4 | . . . . . . . . 2 . . 2 . . Repair Stations 1 | . . . . . . . . . . . 1 . . Recycling Units 1 | . . . . . 1 . . . . . . . . Scanalyzers 2 | . . . . . . . . 2 . . . . . Garrison Access 1 | . . . . . . . . 1 . . . . . Total Hacks 58 | . 8 1 1 . 6 1 . 21 4 . 13 3 . Successful 34 | . 4 1 1 . 5 1 . 11 2 . 6 3 . Failed 24 | . 4 . . . 1 . . 10 2 . 7 . . Catastrophic 4 | . . . . . . . . 2 1 . 1 . . Database Lockouts . | . . . . . . . . . . . . . . Manual 2 | . . . 1 . . . . . . . 1 . . Terminals 38 | . 8 . . . 5 1 . 9 4 . 8 3 . Fabricators 8 | . . . . . . . . 5 . . 3 . . Repair Stations 2 | . . . . . . . . . . . 2 . . Recycling Units 1 | . . . . . 1 . . . . . . . . Scanalyzers 6 | . . . . . . . . 6 . . . . . Garrison Access 1 | . . . . . . . . 1 . . . . . Terminal Hacks 21 | . 4 1 1 . 4 1 . 3 2 . 2 3 . Record 5 | . 1 . . . 2 . . . . . 1 1 . Prototype ID Bank 2 | . 1 . . . 1 . . . . . . . . Open Door 4 | . . 1 . . . . . 1 2 . . . . Open DSF 2 | . . . . . . 1 . 1 . . . . . Branch Access Points 3 | . 1 . . . . . . 1 . . . 1 . Alert Level 1 | . 1 . . . . . . . . . . . . Reinforcement Status 1 | . . . . . 1 . . . . . . . . Recall Investigation 1 | . . . . . . . . . . . 1 . . Zone Layout 1 | . . . . . . . . . . . . 1 . Derelict Proto ID Bank 1 | . . . 1 . . . . . . . . . . Fabricator Hacks 4 | . . . . . . . . 2 . . 2 . . Load Schematic 2 | . . . . . . . . 1 . . 1 . . Build 2 | . . . . . . . . 1 . . 1 . . Repair Station Hacks 2 | . . . . . . . . . . . 2 . . Scan Component 1 | . . . . . . . . . . . 1 . . Repair 1 | . . . . . . . . . . . 1 . . Recycling Unit Hacks 1 | . . . . . 1 . . . . . . . . Report Inventory 1 | . . . . . 1 . . . . . . . . Scanalyzer 5 | . . . . . . . . 5 . . . . . Insert Component 3 | . . . . . . . . 3 . . . . . Analyze 2 | . . . . . . . . 2 . . . . . Garrison Access Hacks 1 | . . . . . . . . 1 . . . . . Seal Access 1 | . . . . . . . . 1 . . . . . Unauthorized Hacks . | . . . . . . . . . . . . . . Terminals . | . . . . . . . . . . . . . . Fabricators . | . . . . . . . . . . . . . . Repair Stations . | . . . . . . . . . . . . . . Recycling Units . | . . . . . . . . . . . . . . Scanalyzers . | . . . . . . . . . . . . . . Garrison Access . | . . . . . . . . . . . . . . Data Cores Recovered 1 | . . . . . 1 . . . . . . . . Used . | . . . . . . . . . . . . . . Hacking Detections 15 | . 1 . . . 1 . . 4 2 . 6 1 . Full Trace Events 4 | . . . . . . . . 2 1 . 1 . . Feedback Events . | . . . . . . . . . . . . . . Feedback Blocked . | . . . . . . . . . . . . . . Robot Schematics Acquired . | . . . . . . . . . . . . . . Robots Built . | . . . . . . . . . . . . . . Authchips . | . . . . . . . . . . . . . . Time . | . . . . . . . . . . . . . . Total Robot Build Rating . | . . . . . . . . . . . . . . Part Schematics Acquired 2 | . . . . . . . . 2 . . . . . Parts Built 4 | . . . . . . . . 2 . . 2 . . Authchips 1 | . . . . . . . . 1 . . . . . Time 135 | . . . . . . . . 62 . . 73 . . Total Part Build Rating 10 | . . . . . . . . 4 . . 6 . . Parts Repaired . | . . . . . . . . . . . . . . Time 38 | . . . . . . . . . . . 38 . . Parts Recycled . | . . . . . . . . . . . . . . Recycled Matter . | . . . . . . . . . . . . . . Retrieved Matter . | . . . . . . . . . . . . . . Retrieved Components . | . . . . . . . . . . . . . . Parts Scanalyzed 3 | . . . . . . . . 3 . . . . . Part Schematics Acquired 2 | . . . . . . . . 2 . . . . . Parts Damaged . | . . . . . . . . . . . . . . Bothacking | -11 -10 -10 -10 -9 -8 -7 -7 -6 -6 -6 -5 -4 -4 ------------ Run | Yrd Mat Min Exi Min Mat Fac DSF Fac Ext Cet Fac Fac Upp Used RIF Installer . | . . . . . . . . . . . . . . Robots Hacked . | . . . . . . . . . . . . . . Non-combat . | . . . . . . . . . . . . . . Combat . | . . . . . . . . . . . . . . Robot Hacks Applied . | . . . . . . . . . . . . . . Relay Couplers Released . | . . . . . . . . . . . . . . Fabnet Peak Effective % . | . . . . . . . . . . . . . . Robots Rewired . | . . . . . . . . . . . . . . Allies Hacked . | . . . . . . . . . . . . . . Hacks Repelled . | . . . . . . . . . . . . . . Allies | -11 -10 -10 -10 -9 -8 -7 -7 -6 -6 -6 -5 -4 -4 -------- Run | Yrd Mat Min Exi Min Mat Fac DSF Fac Ext Cet Fac Fac Upp Total Allies 2 | . . . . . . . . . 2 . . . . Largest Group 1 | . . . . . . . . . 1 . . . . Highest-Rated Group 31 | . . . . . . . . . 31 . . . . Highest-Rated Ally 31 | . . . . . . . . . 31 . . . . Total Orders . | . . . . . . . . . . . . . . Ally Attacks 5 | . . . . . . . . . 5 . . . . Total Damage 83 | . . . . . . . . . 83 . . . . Kills . | . . . . . . . . . . . . . . Allies Corrupted . | . . . . . . . . . . . . . . Allies Melted . | . . . . . . . . . . . . . . Intel | -11 -10 -10 -10 -9 -8 -7 -7 -6 -6 -6 -5 -4 -4 ------- Run | Yrd Mat Min Exi Min Mat Fac DSF Fac Ext Cet Fac Fac Upp Robot Analysis Total . | . . . . . . . . . . . . . . Derelict Logs Recovered 1 | . . . . 1 . . . . . . . . . Drone Launches . | . . . . . . . . . . . . . . Drone Recoveries . | . . . . . . . . . . . . . . Exploration | -11 -10 -10 -10 -9 -8 -7 -7 -6 -6 -6 -5 -4 -4 ------------- Run | Yrd Mat Min Exi Min Mat Fac DSF Fac Ext Cet Fac Fac Upp Turns Passed 5767 | 55 120 311 377 585 733 50 248 1167 928 20 808 341 24 Spaces Moved 3932 | 37 72 192 235 311 314 31 134 566 576 54 888 499 23 Core 117 | 3 . . . . . . . . . . . 91 23 Treads 2282 | . 64 192 235 311 314 31 134 566 435 . . . . Legs 42 | 34 8 . . . . . . . . . . . . Wheels . | . . . . . . . . . . . . . . Hover 520 | . . . . . . . . . . . 112 408 . Flight 971 | . . . . . . . . . 141 54 776 . . Fastest Speed 27 | 50 120 160 160 160 160 160 160 160 27 34 27 40 50 Average Speed 114 | 119 155 160 160 160 195 160 163 165 130 34 35 51 50 Slowest Speed 240 | 190 160 160 160 160 240 160 166 240 160 34 136 118 50 Overloaded Moves . | . . . . . . . . . . . . . . Propulsion Burnouts . | . . . . . . . . . . . . . . Robots Hopped 13 | . . . . . . . . . . . 13 . . Cave-ins Triggered 1 | . . . . . . . . 1 . . . . . Exploration Rate (%) 34 | 3 18 50 61 72 27 2 94 9 69 23 26 15 7 Regions Visited 13 Branch Regions 6 Pre-discovered Areas . | . . . . . . . . . . . . . . Known Exits Taken 7 | . 1 . . . . 1 . 1 1 1 1 1 . Unknown Exits Taken 5 | 1 . 1 1 1 1 . . . . . . . . Scrap Searched 2 | . . 1 . 1 . . . . . . . . . Spaces Dug . | . . . . . . . . . . . . . . Terrain Destroyed 108 | . . . . . 29 . 6 73 . . . . . Melee . | . . . . . . . . . . . . . . Projectile . | . . . . . . . . . . . . . . AOE 108 | . . . . . 29 . 6 73 . . . . . Terrain Rammed . | . . . . . . . . . . . . . . Walls Destroyed . | . . . . . . . . . . . . . . Machines Disabled . | . . . . . . . . . . . . . . Actions | -11 -10 -10 -10 -9 -8 -7 -7 -6 -6 -6 -5 -4 -4 --------- Run | Yrd Mat Min Exi Min Mat Fac DSF Fac Ext Cet Fac Fac Upp Total 4919 | 45 80 196 237 360 374 32 163 738 684 55 1363 563 29 Wait 587 | . . . . . . . . 80 16 . 449 42 . Move 3893 | 36 71 191 234 310 313 30 133 565 575 53 861 498 23 Hop 13 | . . . . . . . . . . . 13 . . Pick Up 58 | 3 3 5 1 9 9 . 10 8 8 . 2 . . Fast Attach 40 | 6 1 . . . 2 . . 3 7 . 14 7 . Attach 53 | . 1 . 1 1 4 2 . 19 12 . 10 2 1 Detach 20 | . 1 . 1 . 1 . . 3 2 1 7 4 . Swap 24 | . 2 . . 11 2 . 4 2 1 . 2 . . Drop 33 | . 1 . . 9 6 . 12 1 1 1 2 . . Fire 131 | . . . . 19 37 . 4 47 14 . 3 7 . Melee 45 | . . . . . . . . 9 29 . . 3 4 Ram 1 | . . . . . . . . . . . . . 1 Kick . | . . . . . . . . . . . . . . Crush 2 | . . . . 1 . . . 1 . . . . . Escape Stasis 19 | . . . . . . . . . 19 . . . . Rewire . | . . . . . . . . . . . . . . Trap . | . . . . . . . . . . . . . . Miscellaneous . | . . . . . . . . . . . . . . Route ------- -11/Scrapyard -10/Materials (discovered 2 exits: *Min x2) -10/Mines (discovered 3 exits: [*Mat x2] / *Exi) -10/Exiles -9/Mines -8/Materials -7/Factory -7/DSF -6/Factory (discovered 5 exits: *Fac / Low x2 / *Ext x2) -6/Extension (discovered 2 exits: *Fac / *Cet) -6/Cetus -5/Factory -4/Factory (discovered 2 exits: *Upp x2) -4/Upper Caves History --------- Turn | Location | Event 33 | -11/Scrapyard | Discovered new exit (range 16) 56 | -11/Scrapyard | Entered Materials 119 | -10/Materials | Identified exit to Mines 176 | -10/Materials | Entered Mines 270 | -10/Mines | Discovered new exit (range 15) 284 | -10/Mines | Met a Derelict who couldn't figure out how to use a Trap Extractor 309 | -10/Mines | Build established: Mutant 340 | -10/Mines | Found a hidden stash of uninstalled traps 361 | -10/Mines | Discovered new exit (range 6) 411 | -10/Mines | Received a Rocket Launcher from a helpful Derelict 479 | -10/Mines | Deemed a non-threat by the Exiles lab entrance 481 | -10/Mines | Discovered new exit (range 5) 487 | -10/Mines | Entered Exiles 524 | -10/Exiles | Met 8R-AWN 553 | -10/Exiles | Met EX-HEX 599 | -10/Exiles | Met EX-BIN 617 | -10/Exiles | Aligned with FarCom system 619 | -10/Exiles | Given EX-Vault access code 657 | -10/Exiles | Opened EX-Vault 667 | -10/Exiles | Found Prototype Device 668 | -10/Exiles | Identified Cloak of Protection 719 | -10/Exiles | Warned to stay clear of 0b10 Research branches 765 | -10/Exiles | Met EX-DEC 847 | -10/Exiles | Discovered new exit (range 12) 864 | -10/Exiles | Left Exiles lab with Cloak of Protection 864 | -10/Exiles | Entered Mines 1259 | -9/Mines | Discovered new exit (range 13) 1283 | -9/Mines | Learned Materials security intel 1309 | -9/Mines | Joined a pair of Derelicts in attacking an 0b10 outpost 1449 | -9/Mines | Entered Materials 1449 | -8/Materials | Evolved 4 slots: Propulsion x1, Utility x2, Weapon x1 1769 | -8/Materials | Build established: Skirmisher 2114 | -8/Materials | Discovered new exit (range 8) 2182 | -8/Materials | Entered Factory 2182 | -7/Factory | Evolved 2 slots: Utility x2 2232 | -7/Factory | Identified exit to DSF 2232 | -7/Factory | Entered DSF 2233 | -7/DSF | Joined Warlord attack on 0b10 via DSF 2245 | -7/DSF | Additional patrols routed to DSF 2261 | -7/DSF | Build established: Scavenger-Skirmisher 2289 | -7/DSF | Lost 4 allies 2385 | -7/DSF | Discovered new exit (range 15) 2480 | -7/DSF | Entered Factory 2480 | -6/Factory | Evolved 2 slots: Propulsion x1, Utility x1 2508 | -6/Factory | Discovered new exit (range 8) 2538 | -6/Factory | Identified exit to Lower Caves 2538 | -6/Factory | Identified exit to Extension 2626 | -6/Factory | Lost 3 parts (1u2w) 2729 | -6/Factory | Fabricated VTOL Module (x2) 2837 | -6/Factory | Crushed by falling debris 2899 | -6/Factory | Build established: Scavenger-Mutant 3156 | -6/Factory | Identified exit to Factory 3326 | -6/Factory | Build established: Scavenger-Assassin 3484 | -6/Factory | System corruption reached 10% 3589 | -6/Factory | Lost 10 parts (3p2n3u2w) 3647 | -6/Factory | Entered Extension 3830 | -6/Extension | Spotted B-75 Beast 4199 | -6/Extension | Lost 3 parts (1n2u) 4207 | -6/Extension | Rescued a captive Derelict 4318 | -6/Extension | Rescued a captive Derelict 4365 | -6/Extension | Core integrity fell below 50% 4456 | -6/Extension | Build established: Scavenger-Mutant 4510 | -6/Extension | Lost 7 parts (2n2u3w) 4517 | -6/Extension | Spotted B-75 Beast 4559 | -6/Extension | Discovered new exit (range 18) 4561 | -6/Extension | Discovered exit to Factory (range 16) 4574 | -6/Extension | Identified exit to Cetus 4575 | -6/Extension | Entered Cetus 4581 | -6/Cetus | Spotted Cetus Guard 4581 | -6/Cetus | Spotted Cetus Guard 4581 | -6/Cetus | Spotted Cetus Guard 4581 | -6/Cetus | Spotted Cetus Guard 4589 | -6/Cetus | Discovered exit to Factory (range 18) 4595 | -6/Cetus | Entered Factory 4595 | -5/Factory | Evolved 2 slots: Power x1, Propulsion x1 4676 | -5/Factory | Fabricated Surge Thruster? 5135 | -5/Factory | Spotted B-75 Beast 5202 | -5/Factory | Lost 5 parts (1p3n1u) 5399 | -5/Factory | Discovered new exit (range 5) 5403 | -5/Factory | Identified exit to Factory 5403 | -5/Factory | Entered another Factory area 5403 | -4/Factory | Evolved 2 slots: Utility x2 5439 | -4/Factory | Identified exit to Upper Caves 5702 | -4/Factory | Core integrity fell below 50% 5725 | -4/Factory | Lost 14 parts (2p5n5u2w) 5744 | -4/Factory | Entered Upper Caves 5764 | -4/Upper Caves | Core integrity fell below 20% 5766 | -4/Upper Caves | Attracted the attention of an 0b10 base 5768 | -4/Upper Caves | Core destroyed Last Messages --------------- Slug penetrates Y-64 Sentinel. Penetrated by Slug. Slug penetrates Wall. Sneak attack on T-07 Excavator. T-07 Excavator destroyed. Acquired 29 matter. Acquired Lgt. Ion Engine. Acquired Imp. Terrain Scanner. [Achievement: Omniscient Cartographer] Slug penetrates Wall. Penetrated by Slug. Imp. Terrain Scanner destroyed. Slug penetrates Wall. Penetrated by Slug. Slug penetrates Wall. LOCATION=UPPER CAVES GOAL=ESCAPE Lance destroyed. Slammed into S-27 Virus. Destabilizing: Core damaged (-34). Map ----- +----------------------------------------------------+ | ?????????????????????????????????????????????????? | | ?????????????????????????????????????????????????? | | ?????????????????????????????????????????????????? | | ?????????????????????????????????????????????????? | | ?????????????????????????????????????????????????? | | ?????????????????????????????????????????????????? | | ?????????????????????????????????????????????????? | | ?????????????????????????????????????????????????? | | ?????????????????????????????????????????????????? | | ?????????????????????????????????????????????????? | | ?????????????????????????????????????????????????? | | ?????????????????????????????????????????????????? | | ?????????????????????????????????????????????????? | | ?????????????????????????????????????????????????? | | ?????????????????????????????????????????????????? | | ?????????????????????????????????????????????????? | | ?????????????????????????????????????????????????? | | ?????????????????????????????????????????????????? | | ?????????????????????????????????????????????????? | | ?????????????????????????????????????????????????? | | ?????????????????????????????????????????????????? | | ?????????????????????????????????????????????????? | | ?????????????????????????????????????????????????? | | ?????????????????????????????????????????????????? | | ?????????######################??????????????????? | | ?????????# g @s #??????????????????? | | ?????????# gs s sY #??????????????????? | | ?????????# ######++########g #??????????????????? | | ???????????????????????????# #??????????????????? | | ?????????????"" ???????????# #??###???##????????? | | ?????????????" ????????# #??# #### ##???????? | | ????????????#" ####### #??# #???????? | | ????????????#" # #?## #???????? | | ????????????#" / ### ##???????? | | ????????????? " / ##????????? | | ????????????? "" # #?????????? | | ?????????????? " ##### ### #????????? | | ?????????????? "" ??????# ##?# #???????? | | ?????????????? "????????# #?? #???????? | | ???????????????????????????# #? #???????? | | ???????????????????????????# ## #???????? | | ???????????????????????????# ## ##???????? | | ???????????????????????????# ## ####????????? | | ??????????????????????????? ### ###???????????? | | ??????????????????????????? #?####?????????????? | | ??????????????????????????#####??????????????????? | | ?????????????????????????????????????????????????? | | ?????????????????????????????????????????????????? | | ?????????????????????????????????????????????????? | | ?????????????????????????????????????????????????? | +----------------------------------------------------+ Best States ------------- Heat Dissipation 69 Energy Generation 34 Energy Capacity 250 Matter Stores 363 Matter Capacity 450 Sight Range 18 Robot Scan Range 16 Terrain Scan Range 20 Terrain Scan Density 285 Cloak Strength 5 Armor Coverage 600 Propulsion Shielding 33 Melee Speed Boost 20 Evasion (%) 64 Targeting Accuracy 14 Melee Accuracy 5 Recoil Reduction 4 Offensive Hacking 10 Authchip Count 1 Item Schematics ----------------- VTOL Module | -6/Factory | Scanalyzed Surge Thruster | -6/Factory | Scanalyzed Robot Schematics ------------------ None Fabricated ------------ VTOL Module | x2 | -6/Factory | Authchip Surge Thruster | x2 | -5/Factory Alien Tech Used ----------------- None Achievements -------------- Omniscient Cartographer Unlikely Earthworm Challenges ------------ None Game ------ Seed TerrainDisruptorFlakker Manual? 0 Play Time 01:08:38 Cumulative 8.4 hours Start 2024.04.08 @ 15:33:02 End 2024.04.08 @ 16:41:42 Sessions 1 Manual Loads 0 Difficulty Rogue Special Mode None Game No. 13 Rogue 13 Adventurer 0 Explorer 0 Win Type - Total 0 Types 0/0/0/0/0/0/0/0/0 Lore% 15 Gallery% 20 Achievement% 20 Wizard Run 0 Options --------- Layout 1 ASCII 0 Keyboard 0 Movement Arrows Keybinds 0 Fullscreen 1 Font 24/Smallcaps Map View 50x35 Zoom Use 0% Tactical HUD 0 Map Filters NONE Filters NONE Steam 1 RUN: 433babc6-8426-45d0-aba7-c9813d389ef9